[Event "Titled Tuesday Blitz May 24 Late 2022"]
[White "Keller, Peter"]
[Black "Golubev, Mikhail"]
[WhiteFideId "1272105"]
[BlackFideId "14100983"]
[WhiteElo "2275"]
[BlackElo "2374"]
[Result "1-0"]
[Round "06"]
[TimeControl "180+1"]
[Date "2022.05.25"]
[WhiteClock "0:00:13"]
[BlackClock "0:00:01"]

1. e4 {[%clk 0:02:46]}  c5 {[%clk 0:02:59]} 2. c3 {[%clk 0:02:43]}  d5 {[%clk 0:02:54]} 3. exd5 {[%clk 0:02:42]}  Qxd5 {[%clk 0:02:53]} 4. d4 {[%clk 0:02:41]}  g6 {[%clk 0:02:53]} 5. Nf3 {[%clk 0:02:33]}  Bg7 {[%clk 0:02:51]} 6. Na3 {[%clk 0:02:33]}  Nf6 {[%clk 0:02:38]} 7. Bc4 {[%clk 0:02:28]}  Qe4+ {[%clk 0:02:12]} 8. Be3 {[%clk 0:02:25]}  O-O {[%clk 0:02:07]} 9. O-O {[%clk 0:02:24]}  cxd4 {[%clk 0:01:52]} 10. Nxd4 {[%clk 0:02:25]}  Ng4 {[%clk 0:01:44]} 11. Bg5 {[%clk 0:02:06]}  Qe5 {[%clk 0:01:24]} 12. Nf3 {[%clk 0:01:53]}  Qc7 {[%clk 0:01:24]} 13. Qe2 {[%clk 0:01:49]}  Nc6 {[%clk 0:00:59]} 14. Nb5 {[%clk 0:01:48]}  Qb6 {[%clk 0:00:38]} 15. Bxe7 {[%clk 0:01:46]}  Nxe7 {[%clk 0:00:34]} 16. Qxe7 {[%clk 0:01:47]}  a6 {[%clk 0:00:29]} 17. Nd6 {[%clk 0:01:36]}  Bf6 {[%clk 0:00:16]} 18. Nxc8 {[%clk 0:00:53]}  Raxc8 {[%clk 0:00:14]} 19. Qe4 {[%clk 0:00:53]}  Nh6 {[%clk 0:00:09]} 20. Bb3 {[%clk 0:00:49]}  Nf5 {[%clk 0:00:08]} 21. Rfe1 {[%clk 0:00:41]}  Kg7 {[%clk 0:00:08]} 22. Rad1 {[%clk 0:00:31]}  Qc7 {[%clk 0:00:07]} 23. g3 {[%clk 0:00:25]}  h5 {[%clk 0:00:07]} 24. h4 {[%clk 0:00:26]}  Rfe8 {[%clk 0:00:06]} 25. Qxe8 {[%clk 0:00:20]}  Rxe8 {[%clk 0:00:06]} 26. Rxe8 {[%clk 0:00:21]}  Nxg3 {[%clk 0:00:05]} 27. Kg2 {[%clk 0:00:15]}  Nf5 {[%clk 0:00:04]} 28. Rde1 {[%clk 0:00:14]}  Qf4 {[%clk 0:00:03]} 29. R8e4 {[%clk 0:00:14]}  Qd6 {[%clk 0:00:02]} 30. Rd1 {[%clk 0:00:13]}  Qc7 {[%clk 0:00:02]} 31. Rc4 {[%clk 0:00:13]}  Qb8 {[%clk 0:00:02]} 32. Rd7 {[%clk 0:00:13]}  b5 {[%clk 0:00:01]} 33. Rcc7 {[%clk 0:00:13]} 1-0


[Site "https://www.chess.com"]

[Event "Titled Tuesday Blitz May 24 Late 2022"]
[White "Keymer, Vincent"]
[Black "Livaic, Leon"]
[WhiteFideId "12940690"]
[BlackFideId "14531534"]
[WhiteElo "2548"]
[BlackElo "2540"]
[Result "1-0"]
[Round "06"]
[TimeControl "180+1"]
[Date "2022.05.24"]
[WhiteClock "0:00:05"]
[BlackClock "0:00:03"]

1. Nf3 {[%clk 0:03:00]}  Nf6 {[%clk 0:02:58]} 2. c4 {[%clk 0:03:01]}  b6 {[%clk 0:02:59]} 3. d4 {[%clk 0:02:59]}  Bb7 {[%clk 0:02:57]} 4. g3 {[%clk 0:03:00]}  e6 {[%clk 0:02:57]} 5. Bg2 {[%clk 0:03:00]}  Bb4+ {[%clk 0:02:57]} 6. Bd2 {[%clk 0:02:57]}  a5 {[%clk 0:02:55]} 7. O-O {[%clk 0:02:51]}  O-O {[%clk 0:02:55]} 8. Bf4 {[%clk 0:02:50]}  Be7 {[%clk 0:02:55]} 9. Nc3 {[%clk 0:02:49]}  Ne4 {[%clk 0:02:51]} 10. Qd3 {[%clk 0:02:26]}  Nxc3 {[%clk 0:02:50]} 11. bxc3 {[%clk 0:02:27]}  d6 {[%clk 0:02:39]} 12. e4 {[%clk 0:02:26]}  Nd7 {[%clk 0:02:37]} 13. Nd2 {[%clk 0:02:22]}  Bg5 {[%clk 0:02:20]} 14. Bxg5 {[%clk 0:02:17]}  Qxg5 {[%clk 0:02:21]} 15. f4 {[%clk 0:02:17]}  Qe7 {[%clk 0:02:21]} 16. Nf3 {[%clk 0:01:49]}  e5 {[%clk 0:02:19]} 17. Rae1 {[%clk 0:01:45]}  Rae8 {[%clk 0:02:16]} 18. Nh4 {[%clk 0:01:39]}  g6 {[%clk 0:02:15]} 19. f5 {[%clk 0:01:27]}  Nf6 {[%clk 0:02:07]} 20. d5 {[%clk 0:01:03]}  Nd7 {[%clk 0:02:02]} 21. Rf2 {[%clk 0:00:59]}  Kg7 {[%clk 0:01:58]} 22. Qe3 {[%clk 0:00:50]}  f6 {[%clk 0:01:56]} 23. fxg6 {[%clk 0:00:46]}  hxg6 {[%clk 0:01:57]} 24. Qe2 {[%clk 0:00:46]}  Nc5 {[%clk 0:01:37]} 25. Qg4 {[%clk 0:00:45]}  Qf7 {[%clk 0:01:37]} 26. Nf5+ {[%clk 0:00:22]}  Kh8 {[%clk 0:01:37]} 27. Ref1 {[%clk 0:00:22]}  Bc8 {[%clk 0:01:05]} 28. Qh4+ {[%clk 0:00:22]}  Qh7 {[%clk 0:01:05]} 29. Nh6 {[%clk 0:00:22]}  Nd7 {[%clk 0:00:56]} 30. Bh3 {[%clk 0:00:22]}  f5 {[%clk 0:00:38]} 31. exf5 {[%clk 0:00:20]}  g5 {[%clk 0:00:37]} 32. Qxg5 {[%clk 0:00:20]}  Nf6 {[%clk 0:00:38]} 33. Qh4 {[%clk 0:00:20]}  e4 {[%clk 0:00:30]} 34. Rf4 {[%clk 0:00:20]}  e3 {[%clk 0:00:30]} 35. Re1 {[%clk 0:00:20]}  e2 {[%clk 0:00:20]} 36. Qg5 {[%clk 0:00:12]}  Ne4 {[%clk 0:00:18]} 37. Qh4 {[%clk 0:00:11]}  Nxc3 {[%clk 0:00:14]} 38. f6 {[%clk 0:00:08]}  Bxh3 {[%clk 0:00:13]} 39. Qxh3 {[%clk 0:00:09]}  Re5 {[%clk 0:00:08]} 40. Rh4 {[%clk 0:00:07]}  Qg6 {[%clk 0:00:02]} 41. Ng4+ {[%clk 0:00:05]}  Kg8 {[%clk 0:00:03]} 42. Nxe5 {[%clk 0:00:05]}  dxe5 {[%clk 0:00:02]} 43. Rh8+ {[%clk 0:00:05]}  Kf7 {[%clk 0:00:03]} 44. Qe6# {[%clk 0:00:05]} 1-0


[Site "https://www.chess.com"]

[Event "Titled Tuesday Blitz May 24 Late 2022"]
[White "Korchmar, Vasiliy"]
[Black "Bernal Moro, Luis Javier"]
[WhiteFideId "24131750"]
[BlackFideId "2200236"]
[WhiteElo "2370"]
[BlackElo "2373"]
[Result "1-0"]
[Round "06"]
[TimeControl "180+1"]
[Date "2022.05.25"]
[WhiteClock "0:00:43"]
[BlackClock "0:00:03"]

1. e4 {[%clk 0:03:00]}  c5 {[%clk 0:02:57]} 2. Nf3 {[%clk 0:03:01]}  e6 {[%clk 0:02:57]} 3. g3 {[%clk 0:03:00]}  Nc6 {[%clk 0:02:55]} 4. Bg2 {[%clk 0:03:00]}  Nf6 {[%clk 0:02:48]} 5. Qe2 {[%clk 0:03:00]}  e5 {[%clk 0:02:47]} 6. O-O {[%clk 0:03:00]}  Be7 {[%clk 0:02:47]} 7. Nc3 {[%clk 0:02:59]}  O-O {[%clk 0:02:45]} 8. Nd5 {[%clk 0:02:59]}  Nxd5 {[%clk 0:02:33]} 9. exd5 {[%clk 0:02:59]}  Nd4 {[%clk 0:02:33]} 10. Nxd4 {[%clk 0:02:50]}  exd4 {[%clk 0:02:24]} 11. f4 {[%clk 0:02:47]}  d6 {[%clk 0:02:22]} 12. f5 {[%clk 0:02:47]}  Bf6 {[%clk 0:02:18]} 13. c3 {[%clk 0:02:45]}  Re8 {[%clk 0:02:15]} 14. Qf3 {[%clk 0:02:42]}  Re5 {[%clk 0:01:38]} 15. g4 {[%clk 0:02:41]}  Bg5 {[%clk 0:01:37]} 16. d3 {[%clk 0:02:39]}  Bd7 {[%clk 0:01:34]} 17. f6 {[%clk 0:02:35]}  Qxf6 {[%clk 0:01:15]} 18. Qxf6 {[%clk 0:02:27]}  gxf6 {[%clk 0:01:11]} 19. cxd4 {[%clk 0:02:27]}  cxd4 {[%clk 0:01:10]} 20. h3 {[%clk 0:02:26]}  Kg7 {[%clk 0:01:08]} 21. Be4 {[%clk 0:02:26]}  h5 {[%clk 0:01:02]} 22. gxh5 {[%clk 0:02:06]}  Rh8 {[%clk 0:01:00]} 23. Bxg5 {[%clk 0:02:02]}  Rxg5+ {[%clk 0:00:59]} 24. Kf2 {[%clk 0:02:01]}  Rhxh5 {[%clk 0:00:58]} 25. Rh1 {[%clk 0:01:56]}  Rxh3 {[%clk 0:00:50]} 26. Rxh3 {[%clk 0:01:56]}  Bxh3 {[%clk 0:00:50]} 27. Rc1 {[%clk 0:01:57]}  f5 {[%clk 0:00:49]} 28. Bf3 {[%clk 0:01:56]}  f4 {[%clk 0:00:39]} 29. Rc7 {[%clk 0:01:55]}  b5 {[%clk 0:00:36]} 30. Rxa7 {[%clk 0:01:51]}  Bf5 {[%clk 0:00:37]} 31. Ra3 {[%clk 0:01:45]}  Rg3 {[%clk 0:00:31]} 32. Rb3 {[%clk 0:01:45]}  Rh3 {[%clk 0:00:29]} 33. Kg2 {[%clk 0:01:42]}  Rg3+ {[%clk 0:00:29]} 34. Kf2 {[%clk 0:01:43]}  Rh3 {[%clk 0:00:29]} 35. Rxb5 {[%clk 0:01:37]}  Bxd3 {[%clk 0:00:29]} 36. Rb4 {[%clk 0:01:38]}  Rh2+ {[%clk 0:00:28]} 37. Kg1 {[%clk 0:01:36]}  Rh3 {[%clk 0:00:27]} 38. Kg2 {[%clk 0:01:35]}  Rg3+ {[%clk 0:00:25]} 39. Kf2 {[%clk 0:01:35]}  Bb1 {[%clk 0:00:22]} 40. Rxd4 {[%clk 0:01:36]}  Bxa2 {[%clk 0:00:22]} 41. Rxf4 {[%clk 0:01:37]}  Rg5 {[%clk 0:00:21]} 42. Rd4 {[%clk 0:01:31]}  Kf6 {[%clk 0:00:20]} 43. b4 {[%clk 0:01:29]}  Bb1 {[%clk 0:00:19]} 44. b5 {[%clk 0:01:28]}  Ke5 {[%clk 0:00:19]} 45. Rb4 {[%clk 0:01:25]}  Bf5 {[%clk 0:00:09]} 46. b6 {[%clk 0:01:26]}  Rg8 {[%clk 0:00:09]} 47. b7 {[%clk 0:01:09]}  Rb8 {[%clk 0:00:10]} 48. Ke3 {[%clk 0:01:10]}  Kf6 {[%clk 0:00:09]} 49. Kd4 {[%clk 0:01:01]}  Ke7 {[%clk 0:00:09]} 50. Be2 {[%clk 0:01:01]}  Kd7 {[%clk 0:00:07]} 51. Bb5+ {[%clk 0:01:02]}  Kc7 {[%clk 0:00:06]} 52. Bc6 {[%clk 0:01:03]}  Bd7 {[%clk 0:00:06]} 53. Rc4 {[%clk 0:00:56]}  f5 {[%clk 0:00:05]} 54. Ke3 {[%clk 0:00:51]}  Re8+ {[%clk 0:00:05]} 55. Kf4 {[%clk 0:00:50]}  Rf8 {[%clk 0:00:05]} 56. Bxd7+ {[%clk 0:00:41]}  Kxd7 {[%clk 0:00:04]} 57. Rc8 {[%clk 0:00:41]}  Rxc8 {[%clk 0:00:04]} 58. bxc8=Q+ {[%clk 0:00:42]}  Kxc8 {[%clk 0:00:04]} 59. Kxf5 {[%clk 0:00:43]}  Kd7 {[%clk 0:00:03]} 60. Kf6 {[%clk 0:00:43]}  Kc7 {[%clk 0:00:03]} 1-0


[Site "https://www.chess.com"]

[Event "Titled Tuesday Blitz May 24 Late 2022"]
[White "Kosteniuk, Alexandra"]
[Black "Toncheva, Nadya"]
[WhiteFideId "4128125"]
[BlackFideId "2924056"]
[WhiteElo "2639"]
[BlackElo "2458"]
[Result "0-1"]
[Round "06"]
[TimeControl "180+1"]
[Date "2022.05.25"]
[WhiteClock "0:00:29"]
[BlackClock "0:00:32"]

1. e4 {[%clk 0:03:00]}  Nf6 {[%clk 0:03:00]} 2. e5 {[%clk 0:03:00]}  Nd5 {[%clk 0:03:00]} 3. d4 {[%clk 0:03:01]}  b5 {[%clk 0:03:00]} 4. Bxb5 {[%clk 0:02:54]}  c5 {[%clk 0:02:59]} 5. c4 {[%clk 0:02:43]}  cxd4 {[%clk 0:02:53]} 6. cxd5 {[%clk 0:02:26]}  Qa5+ {[%clk 0:02:52]} 7. Qd2 {[%clk 0:02:27]}  Qxb5 {[%clk 0:02:51]} 8. Qxd4 {[%clk 0:02:27]}  Ba6 {[%clk 0:02:51]} 9. Qe4 {[%clk 0:01:17]}  Qf1+ {[%clk 0:02:37]} 10. Kd2 {[%clk 0:01:17]}  Qxf2+ {[%clk 0:02:19]} 11. Ne2 {[%clk 0:01:17]}  Bxe2 {[%clk 0:02:20]} 12. Qxe2 {[%clk 0:01:16]}  Qd4+ {[%clk 0:02:20]} 13. Ke1 {[%clk 0:01:11]}  Qxd5 {[%clk 0:02:16]} 14. Nc3 {[%clk 0:01:11]}  Qb7 {[%clk 0:02:15]} 15. Rf1 {[%clk 0:01:08]}  e6 {[%clk 0:02:05]} 16. Qf2 {[%clk 0:01:06]}  d6 {[%clk 0:02:00]} 17. exd6 {[%clk 0:00:43]}  Bxd6 {[%clk 0:01:58]} 18. Qd4 {[%clk 0:00:41]}  Qc7 {[%clk 0:01:26]} 19. Qxg7 {[%clk 0:00:40]}  Be5 {[%clk 0:01:26]} 20. Bf4 {[%clk 0:00:36]}  Qxc3+ {[%clk 0:01:26]} 21. bxc3 {[%clk 0:00:36]}  Bxg7 {[%clk 0:01:26]} 22. Kd2 {[%clk 0:00:34]}  Nd7 {[%clk 0:01:25]} 23. Rab1 {[%clk 0:00:33]}  Nb6 {[%clk 0:01:19]} 24. Rb3 {[%clk 0:00:33]}  O-O {[%clk 0:01:12]} 25. Kc2 {[%clk 0:00:32]}  Rac8 {[%clk 0:01:09]} 26. Rf3 {[%clk 0:00:31]}  Nd5 {[%clk 0:01:04]} 27. Bd2 {[%clk 0:00:31]}  Rc7 {[%clk 0:00:56]} 28. h4 {[%clk 0:00:31]}  Rfc8 {[%clk 0:00:52]} 29. h5 {[%clk 0:00:31]}  Kf8 {[%clk 0:00:36]} 30. h6 {[%clk 0:00:30]}  Bxc3 {[%clk 0:00:30]} 31. Bxc3 {[%clk 0:00:29]}  Rxc3+ {[%clk 0:00:30]} 32. Rbxc3 {[%clk 0:00:29]}  Rxc3+ {[%clk 0:00:30]} 33. Rxc3 {[%clk 0:00:29]}  Nxc3 {[%clk 0:00:31]} 34. Kxc3 {[%clk 0:00:29]}  Ke7 {[%clk 0:00:32]} 0-1


[Site "https://www.chess.com"]

[Event "Titled Tuesday Blitz May 24 Late 2022"]
[White "Larino Nieto, David"]
[Black "Hamitevici, Vladimir"]
[WhiteFideId "2256444"]
[BlackFideId "13902393"]
[WhiteElo "2532"]
[BlackElo "2359"]
[Result "1-0"]
[Round "06"]
[TimeControl "180+1"]
[Date "2022.05.24"]
[WhiteClock "0:00:17"]
[BlackClock "0:00:01"]

1. e4 {[%clk 0:03:00]}  d6 {[%clk 0:02:53]} 2. Nc3 {[%clk 0:02:58]}  Nf6 {[%clk 0:02:52]} 3. g3 {[%clk 0:02:57]}  g6 {[%clk 0:02:46]} 4. Bg2 {[%clk 0:02:57]}  Bg7 {[%clk 0:02:46]} 5. d3 {[%clk 0:02:57]}  O-O {[%clk 0:02:44]} 6. h4 {[%clk 0:02:56]}  h5 {[%clk 0:02:33]} 7. Nh3 {[%clk 0:02:53]}  c6 {[%clk 0:02:29]} 8. f3 {[%clk 0:02:48]}  d5 {[%clk 0:02:24]} 9. Nf2 {[%clk 0:02:47]}  Qc7 {[%clk 0:02:06]} 10. Bf4 {[%clk 0:02:45]}  e5 {[%clk 0:02:05]} 11. Bg5 {[%clk 0:02:45]}  Be6 {[%clk 0:02:03]} 12. Qd2 {[%clk 0:02:38]}  Nbd7 {[%clk 0:02:01]} 13. f4 {[%clk 0:02:36]}  dxe4 {[%clk 0:01:52]} 14. dxe4 {[%clk 0:02:31]}  Rfe8 {[%clk 0:01:40]} 15. f5 {[%clk 0:02:29]}  gxf5 {[%clk 0:01:39]} 16. exf5 {[%clk 0:02:30]}  Bxf5 {[%clk 0:01:36]} 17. Nfe4 {[%clk 0:02:27]}  Nxe4 {[%clk 0:01:17]} 18. Nxe4 {[%clk 0:02:28]}  Bxe4 {[%clk 0:01:01]} 19. Bxe4 {[%clk 0:02:29]}  Nc5 {[%clk 0:00:56]} 20. Bf5 {[%clk 0:02:24]}  e4 {[%clk 0:00:55]} 21. Bf4 {[%clk 0:02:14]}  Qb6 {[%clk 0:00:51]} 22. Qe2 {[%clk 0:02:09]}  Ne6 {[%clk 0:00:36]} 23. c3 {[%clk 0:01:33]}  Nxf4 {[%clk 0:00:32]} 24. gxf4 {[%clk 0:01:34]}  Rad8 {[%clk 0:00:28]} 25. Kf1 {[%clk 0:01:30]}  e3 {[%clk 0:00:25]} 26. Qxh5 {[%clk 0:01:10]}  e2+ {[%clk 0:00:20]} 27. Kg2 {[%clk 0:00:54]}  Qe3 {[%clk 0:00:19]} 28. Rhe1 {[%clk 0:00:46]}  Qxf4 {[%clk 0:00:18]} 29. Qg4 {[%clk 0:00:44]}  Qd2 {[%clk 0:00:17]} 30. h5 {[%clk 0:00:42]}  Kf8 {[%clk 0:00:16]} 31. Qb4+ {[%clk 0:00:36]}  Kg8 {[%clk 0:00:14]} 32. Qg4 {[%clk 0:00:36]}  b6 {[%clk 0:00:13]} 33. h6 {[%clk 0:00:36]}  Qxh6 {[%clk 0:00:13]} 34. Rh1 {[%clk 0:00:36]}  Qd2 {[%clk 0:00:09]} 35. Rae1 {[%clk 0:00:36]}  Qd5+ {[%clk 0:00:05]} 36. Kg1 {[%clk 0:00:33]}  Kf8 {[%clk 0:00:03]} 37. Rh7 {[%clk 0:00:31]}  Qe5 {[%clk 0:00:03]} 38. Rxe2 {[%clk 0:00:26]}  Rd1+ {[%clk 0:00:03]} 39. Kf2 {[%clk 0:00:27]}  Qc5+ {[%clk 0:00:02]} 40. Kg3 {[%clk 0:00:17]}  Rg1+ {[%clk 0:00:01]} 41. Rg2 {[%clk 0:00:18]}  Qe3+ {[%clk 0:00:01]} 42. Kh2 {[%clk 0:00:17]} 1-0


[Site "https://www.chess.com"]

[Event "Titled Tuesday Blitz May 24 Late 2022"]
[White "Maltsevskaya, Aleksandra"]
[Black "Wachinger, Guenther"]
[WhiteFideId "24174041"]
[BlackFideId "4604261"]
[WhiteElo "2235"]
[BlackElo "2212"]
[Result "1-0"]
[Round "06"]
[TimeControl "180+1"]
[Date "2022.05.25"]
[WhiteClock "0:00:18"]
[BlackClock "0:00:02"]

1. e4 {[%clk 0:02:42]}  c5 {[%clk 0:02:59]} 2. Nf3 {[%clk 0:02:41]}  d6 {[%clk 0:02:59]} 3. d4 {[%clk 0:02:41]}  cxd4 {[%clk 0:03:00]} 4. Nxd4 {[%clk 0:02:42]}  Nf6 {[%clk 0:03:00]} 5. Nc3 {[%clk 0:02:43]}  g6 {[%clk 0:03:01]} 6. Be3 {[%clk 0:02:34]}  Bg7 {[%clk 0:03:00]} 7. Bc4 {[%clk 0:02:34]}  O-O {[%clk 0:02:59]} 8. f3 {[%clk 0:02:33]}  Nc6 {[%clk 0:03:00]} 9. O-O {[%clk 0:02:27]}  Bd7 {[%clk 0:02:54]} 10. Bb3 {[%clk 0:02:24]}  Rc8 {[%clk 0:02:54]} 11. Qe2 {[%clk 0:02:24]}  a6 {[%clk 0:02:53]} 12. Rad1 {[%clk 0:02:21]}  Ne5 {[%clk 0:02:53]} 13. a4 {[%clk 0:02:16]}  Qa5 {[%clk 0:02:49]} 14. Qf2 {[%clk 0:02:15]}  Nc4 {[%clk 0:02:48]} 15. Bxc4 {[%clk 0:02:13]}  Rxc4 {[%clk 0:02:49]} 16. Nb3 {[%clk 0:02:13]}  Qc7 {[%clk 0:02:38]} 17. h3 {[%clk 0:02:12]}  Bxa4 {[%clk 0:02:35]} 18. Bb6 {[%clk 0:02:03]}  Qc8 {[%clk 0:02:34]} 19. Na5 {[%clk 0:01:44]}  Rb4 {[%clk 0:02:23]} 20. Nxa4 {[%clk 0:01:39]}  Rxa4 {[%clk 0:02:22]} 21. c3 {[%clk 0:01:39]}  Nd7 {[%clk 0:02:17]} 22. b3 {[%clk 0:01:29]}  Ra3 {[%clk 0:02:02]} 23. Rc1 {[%clk 0:01:00]}  Nxb6 {[%clk 0:01:43]} 24. Qxb6 {[%clk 0:01:01]}  Qc5+ {[%clk 0:01:32]} 25. Qxc5 {[%clk 0:01:00]}  dxc5 {[%clk 0:01:33]} 26. Nxb7 {[%clk 0:01:00]}  Rxb3 {[%clk 0:01:31]} 27. Nxc5 {[%clk 0:01:00]}  Rxc3 {[%clk 0:01:31]} 28. Rxc3 {[%clk 0:01:00]}  Bxc3 {[%clk 0:01:32]} 29. Nxa6 {[%clk 0:01:00]}  Ra8 {[%clk 0:01:30]} 30. Nc7 {[%clk 0:01:00]}  Ra2 {[%clk 0:01:19]} 31. Nd5 {[%clk 0:00:53]}  Bd4+ {[%clk 0:01:18]} 32. Kh1 {[%clk 0:00:52]}  e6 {[%clk 0:01:19]} 33. Ne7+ {[%clk 0:00:51]}  Kf8 {[%clk 0:01:18]} 34. Nc6 {[%clk 0:00:52]}  Be3 {[%clk 0:01:15]} 35. Re1 {[%clk 0:00:49]}  Bf2 {[%clk 0:01:14]} 36. Rd1 {[%clk 0:00:49]}  Bg3 {[%clk 0:01:10]} 37. Nb4 {[%clk 0:00:41]}  Ra4 {[%clk 0:00:55]} 38. Nc2 {[%clk 0:00:37]}  h5 {[%clk 0:00:51]} 39. Ne3 {[%clk 0:00:36]}  Bf4 {[%clk 0:00:49]} 40. Nc2 {[%clk 0:00:21]}  Rc4 {[%clk 0:00:41]} 41. Nd4 {[%clk 0:00:21]}  Kg7 {[%clk 0:00:27]} 42. Ne2 {[%clk 0:00:21]}  Be5 {[%clk 0:00:20]} 43. Kg1 {[%clk 0:00:19]}  Rc2 {[%clk 0:00:20]} 44. Kf2 {[%clk 0:00:19]}  h4 {[%clk 0:00:20]} 45. Ke3 {[%clk 0:00:18]}  Bb8 {[%clk 0:00:20]} 46. f4 {[%clk 0:00:18]}  Ra2 {[%clk 0:00:16]} 47. Kf3 {[%clk 0:00:19]}  Ba7 {[%clk 0:00:11]} 48. Rd3 {[%clk 0:00:18]}  Ra4 {[%clk 0:00:07]} 49. g3 {[%clk 0:00:15]}  hxg3 {[%clk 0:00:07]} 50. Nxg3 {[%clk 0:00:16]}  Rd4 {[%clk 0:00:06]} 51. Rb3 {[%clk 0:00:15]}  Rc4 {[%clk 0:00:06]} 52. h4 {[%clk 0:00:13]}  Bc5 {[%clk 0:00:04]} 53. h5 {[%clk 0:00:13]}  gxh5 {[%clk 0:00:04]} 54. Nxh5+ {[%clk 0:00:13]}  Kg6 {[%clk 0:00:05]} 55. Ng3 {[%clk 0:00:14]}  Be7 {[%clk 0:00:04]} 56. Rb5 {[%clk 0:00:14]}  Rc5 {[%clk 0:00:03]} 57. Rb7 {[%clk 0:00:14]}  Bd6 {[%clk 0:00:02]} 58. f5+ {[%clk 0:00:14]}  exf5 {[%clk 0:00:01]} 59. Nxf5 {[%clk 0:00:15]}  Be5 {[%clk 0:00:01]} 60. Ne7+ {[%clk 0:00:14]}  Kf6 {[%clk 0:00:01]} 61. Nd5+ {[%clk 0:00:15]}  Ke6 {[%clk 0:00:01]} 62. Rb6+ {[%clk 0:00:15]}  Kd7 {[%clk 0:00:01]} 63. Rh6 {[%clk 0:00:14]}  f6 {[%clk 0:00:02]} 64. Kg4 {[%clk 0:00:15]}  Ke6 {[%clk 0:00:02]} 65. Rh7 {[%clk 0:00:15]}  Rc8 {[%clk 0:00:02]} 66. Rb7 {[%clk 0:00:15]}  Kd6 {[%clk 0:00:02]} 67. Rb6+ {[%clk 0:00:15]}  Kc5 {[%clk 0:00:02]} 68. Kf5 {[%clk 0:00:16]}  Rd8 {[%clk 0:00:02]} 69. Rb7 {[%clk 0:00:16]}  Kd4 {[%clk 0:00:02]} 70. Rb1 {[%clk 0:00:16]}  Kd3 {[%clk 0:00:02]} 71. Rd1+ {[%clk 0:00:17]}  Ke2 {[%clk 0:00:02]} 72. Nc3+ {[%clk 0:00:17]}  Ke3 {[%clk 0:00:02]} 73. Rxd8 {[%clk 0:00:18]} 1-0


[Site "https://www.chess.com"]

[Event "Titled Tuesday Blitz May 24 Late 2022"]
[White "Matinian, Nikita"]
[Black "Ibarra Jerez, Jose Carlos"]
[WhiteFideId "24129100"]
[BlackFideId "2226332"]
[WhiteElo "2422"]
[BlackElo "2626"]
[Result "1/2-1/2"]
[Round "06"]
[TimeControl "180+1"]
[Date "2022.05.24"]
[WhiteClock "0:00:04"]
[BlackClock "0:00:03"]

1. e4 {[%clk 0:03:00]}  c5 {[%clk 0:02:58]} 2. Nf3 {[%clk 0:03:00]}  e6 {[%clk 0:02:58]} 3. d4 {[%clk 0:03:00]}  cxd4 {[%clk 0:02:59]} 4. Nxd4 {[%clk 0:03:01]}  Bc5 {[%clk 0:02:59]} 5. Nb3 {[%clk 0:03:00]}  Bb6 {[%clk 0:02:59]} 6. Qg4 {[%clk 0:03:00]}  Nf6 {[%clk 0:02:59]} 7. Qxg7 {[%clk 0:02:49]}  Bxf2+ {[%clk 0:02:55]} 8. Kxf2 {[%clk 0:02:41]}  Rg8 {[%clk 0:02:54]} 9. Qxg8+ {[%clk 0:02:40]}  Nxg8 {[%clk 0:02:54]} 10. Nc3 {[%clk 0:02:40]}  Nf6 {[%clk 0:02:50]} 11. Be2 {[%clk 0:02:39]}  Nc6 {[%clk 0:02:47]} 12. Rf1 {[%clk 0:02:38]}  Ne5 {[%clk 0:02:43]} 13. Kg1 {[%clk 0:02:36]}  Nfg4 {[%clk 0:02:40]} 14. h3 {[%clk 0:02:29]}  Qb6+ {[%clk 0:02:16]} 15. Kh1 {[%clk 0:02:29]}  Ne3 {[%clk 0:02:16]} 16. Na4 {[%clk 0:02:25]}  Qb4 {[%clk 0:02:15]} 17. Bxe3 {[%clk 0:02:24]}  Qxa4 {[%clk 0:02:05]} 18. Bd4 {[%clk 0:02:11]}  Ng6 {[%clk 0:01:58]} 19. Bh5 {[%clk 0:01:53]}  b6 {[%clk 0:01:54]} 20. Rf6 {[%clk 0:00:53]}  Ba6 {[%clk 0:01:48]} 21. e5 {[%clk 0:00:42]}  Bc4 {[%clk 0:01:32]} 22. Bc3 {[%clk 0:00:36]}  Bd5 {[%clk 0:01:15]} 23. Nd4 {[%clk 0:00:35]}  O-O-O {[%clk 0:00:57]} 24. Re1 {[%clk 0:00:19]}  Rg8 {[%clk 0:00:57]} 25. Kh2 {[%clk 0:00:09]}  Bxg2 {[%clk 0:00:46]} 26. Bxg6 {[%clk 0:00:07]}  Bd5 {[%clk 0:00:29]} 27. Be4 {[%clk 0:00:07]}  Bxe4 {[%clk 0:00:28]} 28. Rxe4 {[%clk 0:00:08]}  Qxa2 {[%clk 0:00:29]} 29. Rg4 {[%clk 0:00:08]}  Rxg4 {[%clk 0:00:23]} 30. hxg4 {[%clk 0:00:09]}  Qd5 {[%clk 0:00:23]} 31. Nf3 {[%clk 0:00:09]}  Qe4 {[%clk 0:00:22]} 32. Kg3 {[%clk 0:00:09]}  Qxc2 {[%clk 0:00:20]} 33. Rxf7 {[%clk 0:00:09]}  a5 {[%clk 0:00:20]} 34. Nd4 {[%clk 0:00:08]}  Qd3+ {[%clk 0:00:20]} 35. Kh4 {[%clk 0:00:08]}  a4 {[%clk 0:00:20]} 36. Rf8+ {[%clk 0:00:08]}  Kb7 {[%clk 0:00:19]} 37. Rd8 {[%clk 0:00:08]}  Kc7 {[%clk 0:00:19]} 38. Nxe6+ {[%clk 0:00:08]}  Kb7 {[%clk 0:00:15]} 39. Nd4 {[%clk 0:00:08]}  a3 {[%clk 0:00:16]} 40. e6 {[%clk 0:00:07]}  dxe6 {[%clk 0:00:15]} 41. Nxe6 {[%clk 0:00:07]}  Qg6 {[%clk 0:00:11]} 42. Nf4 {[%clk 0:00:05]}  Qh6+ {[%clk 0:00:10]} 43. Nh5 {[%clk 0:00:05]}  a2 {[%clk 0:00:10]} 44. b4 {[%clk 0:00:05]}  Qc1 {[%clk 0:00:09]} 45. Bh8 {[%clk 0:00:05]}  Qh1+ {[%clk 0:00:09]} 46. Kg5 {[%clk 0:00:05]}  Qc1+ {[%clk 0:00:10]} 47. Kh4 {[%clk 0:00:05]}  a1=Q {[%clk 0:00:09]} 48. Bxa1 {[%clk 0:00:05]}  Qxa1 {[%clk 0:00:10]} 49. Rd7+ {[%clk 0:00:06]}  Kc6 {[%clk 0:00:11]} 50. Rxh7 {[%clk 0:00:07]}  Qe1+ {[%clk 0:00:10]} 51. Kg5 {[%clk 0:00:07]}  Qxb4 {[%clk 0:00:11]} 52. Nf6 {[%clk 0:00:06]}  Qd2+ {[%clk 0:00:11]} 53. Kg6 {[%clk 0:00:06]}  b5 {[%clk 0:00:11]} 54. g5 {[%clk 0:00:07]}  b4 {[%clk 0:00:11]} 55. Rh6 {[%clk 0:00:02]}  b3 {[%clk 0:00:10]} 56. Ne4 {[%clk 0:00:02]}  Qc2 {[%clk 0:00:09]} 57. Kf5+ {[%clk 0:00:03]}  Kd5 {[%clk 0:00:10]} 58. Rd6+ {[%clk 0:00:03]}  Kc4 {[%clk 0:00:10]} 59. Rc6+ {[%clk 0:00:04]}  Kd4 {[%clk 0:00:10]} 60. Rxc2 {[%clk 0:00:04]}  bxc2 {[%clk 0:00:11]} 61. Ng3 {[%clk 0:00:04]}  Ke3 {[%clk 0:00:10]} 62. g6 {[%clk 0:00:03]}  c1=Q {[%clk 0:00:10]} 63. Nh5 {[%clk 0:00:03]}  Qc5+ {[%clk 0:00:08]} 64. Kg4 {[%clk 0:00:02]}  Ke4 {[%clk 0:00:07]} 65. g7 {[%clk 0:00:02]}  Qf5+ {[%clk 0:00:06]} 66. Kh4 {[%clk 0:00:02]}  Qg6 {[%clk 0:00:03]} 67. g8=Q {[%clk 0:00:02]}  Qxg8 {[%clk 0:00:02]} 68. Nf6+ {[%clk 0:00:03]}  Kf5 {[%clk 0:00:03]} 69. Nxg8 {[%clk 0:00:04]} 1/2-1/2


[Site "https://www.chess.com"]